bitfinex/quotes_BTCUSD_20241110
["timestamp","ask_amount","ask_price","bid_price","bid_amount"]
[1731269040654,0.125262,79833.0,79831.0,0.01]
[1731269040813,0.21672614,79840.0,79831.0,0.01]
[1731269041020,0.25365797,80031.0,79830.0,0.005]
[1731269041021,0.0771,79837.0,79830.0,0.005]
[1731269041269,0.05186244,79842.0,79831.0,0.01]
[1731269041452,0.1879452,79837.0,79831.0,0.005]
[1731269041627,0.125264,79831.0,79830.0,0.005]
[1731269042206,0.125264,79831.0,79830.0,0.04689052]
[1731269042437,0.35360621,79831.0,79830.0,0.04689052]
[1731269042637,0.5617563,79831.0,79830.0,0.04689052]
[1731269042849,0.5597563,79831.0,79830.0,0.01803457]
[1731269043061,0.5597563,79831.0,79810.0,0.00084]
[1731269043062,0.125288,79816.0,79815.0,0.03609999]
[1731269043274,0.250296,79811.0,79810.0,0.00084]
[1731269043485,0.250296,79811.0,79786.0,0.1879452]
[1731269043486,0.46503114,79805.0,79786.0,0.21680274]
[1731269043710,0.123,79802.0,79786.0,0.1879452]
[1731269043940,0.46504714,79795.0,79786.0,0.1879452]
[1731269044141,0.125322,79794.0,79786.0,0.1879452]
[1731269044345,0.37426421,79794.0,79793.0,0.02972202]
[1731269044551,0.37426421,79794.0,79793.0,0.0297257]
[1731269044761,0.250626,79800.0,79793.0,0.0297257]
[1731269044981,0.125322,79794.0,79793.0,0.00084]
[1731269045203,0.125322,79794.0,79793.0,0.02972551]
[1731269045748,0.12532,79796.0,79793.0,0.02972551]
[1731269045954,0.125321,79795.0,79794.0,0.02888551]
[1731269046195,0.125321,79795.0,79794.0,0.06497849]
[1731269046408,0.125321,79795.0,79794.0,0.02888551]
[1731269046810,0.125321,79795.0,79794.0,0.06496723]
[1731269047241,0.27426321,79795.0,79794.0,0.02888551]
[1731269047464,0.248322,79794.0,79793.0,0.00084]
[1731269047599,0.37426421,79794.0,79793.0,0.00084]
[1731269048000,0.45366421,79794.0,79793.0,0.00084]
[1731269048552,0.45566421,79794.0,79793.0,0.00084]
[1731269048717,0.45366421,79794.0,79793.0,0.00084]
[1731269051859,0.45566421,79794.0,79793.0,0.00084]
[1731269052298,0.45366421,79794.0,79793.0,0.00084]
[1731269054325,0.45366421,79794.0,79793.0,0.00033071]
[1731269055048,0.45566421,79794.0,79793.0,0.00033071]
[1731269056977,0.45366421,79794.0,79793.0,0.00033071]
[1731269057513,0.45358995,79794.0,79793.0,0.00033071]
[1731269058417,0.34043695,79794.0,79793.0,0.00033071]
[1731269058602,0.33066421,79794.0,79793.0,0.00033071]
[1731269059425,0.0502,79805.0,79793.0,0.00033071]
[1731269059426,0.250629,79799.0,79793.0,0.00033071]
[1731269059675,0.12594221,79798.0,79794.0,0.01788367]
[1731269059990,0.125319,79796.0,79795.0,0.01788367]
[1731269060352,0.46798735,79796.0,79795.0,0.04650413]
[1731269060562,0.127322,79794.0,79787.0,0.001416]
[1731269060739,0.34405814,79788.0,79787.0,0.001416]
[1731269060943,0.59300035,79788.0,79787.0,0.001416]
[1731269061798,0.59100035,79788.0,79787.0,0.001416]
[1731269065968,0.49100035,79788.0,79787.0,0.001416]
[1731269067342,0.49100035,79788.0,79787.0,0.03007163]
[1731269067591,0.54221971,79788.0,79787.0,0.03007163]
[1731269068017,0.54221971,79788.0,79787.0,0.001416]
[1731269069388,0.71751971,79788.0,79787.0,0.001416]
[1731269070546,0.71951971,79788.0,79787.0,0.001416]
[1731269071879,0.71751971,79788.0,79787.0,0.001416]
[1731269072399,0.71751971,79788.0,79787.0,0.030209]
[1731269072624,0.69451971,79788.0,79787.0,0.030209]
[1731269072740,0.69451971,79788.0,79787.0,0.04820419]
[1731269074404,0.69651971,79788.0,79787.0,0.01941119]
[1731269074809,0.69651971,79788.0,79787.0,0.04821726]
[1731269075389,0.6,79771.0,79768.0,0.000839]
[1731269075607,0.125371,79763.0,79758.0,0.02881237]
[1731269075848,0.34210914,79755.0,79754.0,0.1879452]
[1731269076001,0.125385,79754.0,79749.0,0.01]
[1731269076201,0.125385,79754.0,79745.0,0.1929452]
[1731269076202,0.21672614,79755.0,79750.0,0.03602855]
[1731269076406,0.21672614,79751.0,79747.0,0.005]
[1731269076632,0.125395,79748.0,79744.0,0.005]
[1731269076958,0.125392,79750.0,79744.0,0.005]
[1731269077156,0.125393,79749.0,79744.0,0.005]
[1731269077356,0.125395,79748.0,79744.0,0.005]
[1731269077701,0.125395,79748.0,79744.0,0.01]
[1731269077956,0.250777,79752.0,79744.0,0.01]
[1731269078197,0.250774,79753.0,79744.0,0.01]
[1731269078372,0.125395,79748.0,79744.0,0.01]
[1731269078609,0.250774,79753.0,79744.0,0.01]
[1731269078781,0.250783,79750.0,79744.0,0.01]
[1731269078998,0.250783,79750.0,79735.0,0.248614]
[1731269078999,0.125411,79738.0,79735.0,0.005]
[1731269079206,0.25083,79735.0,79720.0,0.005]
[1731269079412,0.34214714,79731.0,79726.0,0.005]
[1731269079545,0.25136321,79731.0,79726.0,0.005]
[1731269080200,0.77816828,79731.0,79720.0,0.005]
[1731269080404,0.46808935,79731.0,79722.0,0.005]
[1731269080925,0.46808935,79731.0,79715.0,0.001418]
[1731269081065,0.46808935,79731.0,79716.0,0.005]
[1731269081269,0.52015397,79731.0,79719.0,0.005]
[1731269082587,0.52015397,79731.0,79720.0,0.005]
[1731269083384,0.17800683,79731.0,79724.0,0.005]
[1731269083808,0.17800683,79731.0,79722.0,0.005]
[1731269083809,0.30342783,79731.0,79725.0,0.005]
[1731269084604,0.30342783,79731.0,79715.0,0.001418]
[1731269084779,0.52252115,79731.0,79715.0,0.001418]
[1731269084982,0.42642783,79731.0,79715.0,0.001418]
[1731269085545,0.42842783,79731.0,79715.0,0.001418]
[1731269085968,0.42642783,79731.0,79715.0,0.001418]
[1731269086960,0.40342783,79731.0,79715.0,0.001418]
[1731269087163,0.40342783,79731.0,79715.0,0.006418]
[1731269088347,0.40342783,79731.0,79715.0,0.011418]
[1731269088538,0.40342783,79731.0,79719.0,0.005]
[1731269089605,0.40342783,79731.0,79715.0,0.131864]
[1731269089606,0.40342783,79731.0,79715.0,0.006418]
[1731269089815,0.748445,79716.0,79715.0,0.001418]
[1731269090052,0.1,79706.0,79684.0,0.005]
[1731269090257,0.1,79706.0,79691.0,0.1879452]
[1731269090258,0.34220914,79692.0,79691.0,0.1879452]
[1731269090500,0.34220914,79692.0,79685.0,0.005]
[1731269090501,0.21672614,79692.0,79685.0,0.005]
[1731269090695,0.21672614,79692.0,79689.0,0.01774655]
[1731269090893,0.125486,79690.0,79684.0,0.005]
[1731269091132,0.125486,79690.0,79682.0,0.01]
[1731269091431,0.125487,79689.0,79684.0,0.005]
[1731269091620,0.125487,79689.0,79685.0,0.005]
[1731269091850,0.125487,79689.0,79682.0,0.005]
[1731269092778,0.1,79698.0,79689.0,0.005]
[1731269092985,0.23844364,79695.0,79687.0,0.005]
[1731269093168,0.12594221,79694.0,79688.0,0.00642]
[1731269093374,0.1,79698.0,79690.0,0.005]
[1731269093693,0.1879452,79691.0,79689.0,0.005]
[1731269093952,0.125482,79693.0,79688.0,0.00642]
[1731269094291,0.376434,79695.0,79688.0,0.00642]
[1731269094524,0.12594221,79695.0,79688.0,0.00642]
[1731269094727,0.12594221,79694.0,79688.0,0.00142]
[1731269094931,0.44221314,79689.0,79688.0,0.00142]
[1731269095127,0.56815535,79689.0,79688.0,0.00142]
[1731269096935,0.35142921,79689.0,79688.0,0.00142]
[1731269097311,0.22594221,79689.0,79688.0,0.00142]
[1731269097509,0.35142921,79689.0,79688.0,0.00142]
[1731269097847,0.41166823,79689.0,79688.0,0.00142]
[1731269098076,0.22594221,79689.0,79688.0,0.00142]
[1731269098609,0.35142921,79689.0,79688.0,0.00142]
[1731269098995,0.1,79689.0,79688.0,0.00142]
[1731269099199,0.1,79691.0,79688.0,0.00142]
[1731269099399,0.22594221,79691.0,79688.0,0.00142]
[1731269099596,0.35142621,79691.0,79688.0,0.00142]
[1731269099803,0.22594221,79691.0,79688.0,0.00142]
[1731269100412,0.35142721,79691.0,79688.0,0.00142]
[1731269100615,0.22594221,79691.0,79688.0,0.00142]
[1731269101740,0.250898,79714.0,79694.0,0.005]
[1731269101956,0.1879452,79699.0,79696.0,0.125476]
[1731269102179,0.125472,79699.0,79684.0,0.0465]
[1731269102308,0.125472,79699.0,79686.0,0.250984]
[1731269102514,0.125477,79696.0,79684.0,0.0465]
[1731269102715,0.12594221,79695.0,79686.0,0.125491]
[1731269103092,0.1879452,79694.0,79681.0,0.0004911]
[1731269103302,0.31388741,79694.0,79681.0,0.0004911]
[1731269103499,0.25142221,79694.0,79686.0,0.125492]
[1731269103617,0.12594221,79694.0,79686.0,0.125492]
[1731269103810,0.12594221,79694.0,79683.0,0.250994]
[1731269104126,0.31388741,79694.0,79686.0,0.125491]
[1731269104532,0.31388741,79694.0,79681.0,0.0004911]
[1731269104533,0.31388741,79694.0,79687.0,0.125489]
[1731269104979,0.31388741,79694.0,79684.0,0.250991]
[1731269104980,0.12594221,79694.0,79688.0,0.125489]
[1731269105182,0.12594221,79694.0,79681.0,0.0004911]
[1731269105383,0.12594221,79694.0,79690.0,0.125486]
[1731269105584,0.12594221,79694.0,79681.0,0.0004911]
[1731269105749,0.12594221,79694.0,79683.0,0.250994]
[1731269105944,0.12594221,79694.0,79690.0,0.125485]
[1731269106316,0.1,79702.0,79699.0,0.125471]
[1731269106459,0.1,79700.0,79686.0,0.250985]
[1731269106661,0.1,79700.0,79697.0,0.125473]
[1731269107251,0.1,79700.0,79688.0,0.250978]
[1731269107652,0.1,79700.0,79694.0,0.125478]
[1731269107855,0.1,79700.0,79690.0,0.250972]
[1731269107856,0.1879452,79695.0,79683.0,0.250994]
[1731269108230,0.12594221,79699.0,79681.0,0.0004911]
[1731269108231,0.250953,79696.0,79681.0,0.0004911]
[1731269108365,0.12594221,79699.0,79681.0,0.0004911]
[1731269108366,0.25141421,79699.0,79681.0,0.0004911]
[1731269108553,0.12594221,79699.0,79681.0,0.0004911]
[1731269108759,0.12594221,79699.0,79694.0,0.125479]
[1731269109163,0.1,79710.0,79682.0,0.376495]
[1731269109380,0.1879452,79703.0,79690.0,0.125485]
[1731269109618,0.125469,79701.0,79684.0,0.000841]
[1731269109777,0.001682,79699.0,79684.0,0.000841]
[1731269110381,0.001682,79699.0,79693.0,0.12548]
[1731269110624,0.001682,79699.0,79685.0,0.250988]
[1731269110829,0.001682,79699.0,79698.0,0.125473]
[1731269116891,0.001682,79699.0,79696.0,0.250951]
[1731269117114,0.001682,79699.0,79698.0,0.125473]
[1731269117317,0.001682,79699.0,79698.0,0.12798226]
[1731269117517,0.001682,79699.0,79698.0,0.125473]
[1731269120646,0.001682,79699.0,79685.0,0.250985]
[1731269120859,0.001682,79699.0,79697.0,0.125474]
[1731269121327,0.001682,79699.0,79684.0,0.005841]
[1731269121328,0.40467134,79698.0,79684.0,0.000841]
[1731269121532,0.21672614,79698.0,79684.0,0.000841]
[1731269121734,0.125482,79693.0,79684.0,0.000841]
[1731269121935,0.125477,79696.0,79684.0,0.126335]
[1731269122177,0.125479,79695.0,79685.0,0.125493]
[1731269122390,0.1879452,79697.0,79684.0,0.000841]
[1731269122599,0.1879452,79697.0,79688.0,0.125489]
[1731269122827,0.1879452,79697.0,79684.0,0.000841]
[1731269122828,0.1879452,79697.0,79693.0,0.12548]
[1731269123269,0.1879452,79697.0,79694.0,0.01778216]
[1731269123420,0.05328979,79699.0,79695.0,0.01778216]
[1731269123622,0.05328979,79699.0,79696.0,0.01778216]
[1731269123826,0.05328979,79699.0,79697.0,0.01778216]
[1731269124030,0.05328979,79699.0,79684.0,0.251829]
[1731269124031,0.125473,79698.0,79685.0,0.125493]
[1731269124292,0.125473,79698.0,79684.0,0.000841]
[1731269124293,0.05328979,79699.0,79686.0,0.01778488]
[1731269124548,0.05328979,79699.0,79687.0,0.09639456]
[1731269124549,0.001682,79699.0,79687.0,0.09639456]
[1731269124806,0.001682,79699.0,79698.0,0.125473]
[1731269125270,0.001682,79699.0,79698.0,0.14325788]
[1731269127352,0.001682,79699.0,79698.0,0.14250907]
[1731269127840,0.001682,79699.0,79698.0,0.01778488]
[1731269128304,0.35309621,79699.0,79698.0,0.01778488]
[1731269128576,0.5,79687.0,79672.0,0.1879452]
[1731269128790,0.125494,79685.0,79672.0,0.1879452]
[1731269129047,0.35643621,79685.0,79661.0,0.1879452]
[1731269129260,0.50733621,79685.0,79661.0,0.1879452]
[1731269129473,0.50533621,79685.0,79662.0,0.01779489]
[1731269129680,0.50533621,79685.0,79661.0,0.3134762]
[1731269129681,0.50533621,79685.0,79663.0,0.01779489]
[1731269129929,0.50533621,79685.0,79661.0,0.1879452]
[1731269129930,0.54674027,79685.0,79661.0,0.3134752]
[1731269130163,0.54674027,79685.0,79661.0,0.1879452]
[1731269130391,0.54674027,79685.0,79661.0,0.3134752]
[1731269130622,0.54674027,79685.0,79661.0,0.1879452]
[1731269130837,0.50533621,79685.0,79661.0,0.1879452]
[1731269131044,0.50533621,79685.0,79661.0,0.3134762]
[1731269131876,0.5093956,79685.0,79662.0,0.01777269]
[1731269132080,0.5093956,79685.0,79663.0,0.01777269]
[1731269132286,0.5093956,79685.0,79664.0,0.01777269]
[1731269132415,0.5093956,79685.0,79662.0,0.01777269]
[1731269132597,0.5093956,79685.0,79663.0,0.01777269]
[1731269132799,0.48454573,79685.0,79671.0,0.125515]
[1731269133006,0.48454573,79685.0,79669.0,0.1879452]
[1731269133233,0.48454573,79685.0,79670.0,0.0177661]
[1731269133435,0.48454573,79685.0,79661.0,0.4390082]
[1731269133436,0.48454573,79685.0,79662.0,0.01776311]
[1731269133655,0.48454573,79685.0,79661.0,0.1879452]
[1731269133656,0.64048794,79685.0,79661.0,0.1879452]
[1731269134050,0.63848794,79685.0,79662.0,0.125529]
[1731269134652,0.50754573,79685.0,79661.0,0.4390072]
[1731269134861,0.48454573,79685.0,79667.0,0.125521]
[1731269135048,0.48454573,79685.0,79666.0,0.125523]
[1731269135459,0.48454573,79685.0,79661.0,0.4390072]
[1731269136024,0.48454573,79685.0,79668.0,0.12552]
[1731269136218,0.48454573,79685.0,79669.0,0.1879452]
[1731269136424,0.1,79678.0,79666.0,0.125523]
[1731269136653,0.22594221,79678.0,79661.0,0.1879452]
[1731269136853,0.22594221,79678.0,79664.0,0.251053]
[1731269137057,0.00280082,79677.0,79669.0,0.125518]
[1731269137632,0.19878303,79678.0,79670.0,0.125516]
[1731269137968,0.00268412,79677.0,79671.0,0.125515]
[1731269138143,0.12819012,79677.0,79667.0,0.125521]
[1731269138342,0.00268412,79677.0,79668.0,0.12552]
[1731269138730,0.00268412,79677.0,79674.0,0.12551]
[1731269138928,0.0012385,79676.0,79670.0,0.125517]
[1731269139136,0.0012385,79676.0,79657.0,0.44153154]
[1731269139346,0.0012385,79676.0,79669.0,0.125518]
[1731269139560,0.0012385,79676.0,79670.0,0.125516]
[1731269139794,0.0012385,79676.0,79655.0,0.005]
[1731269139795,0.0012385,79676.0,79674.0,0.12551]
[1731269140058,0.0012385,79676.0,79672.0,0.125513]
[1731269140469,0.1,79681.0,79672.0,0.125513]
[1731269140840,0.00267855,79680.0,79674.0,0.125511]
[1731269141125,0.00267855,79680.0,79672.0,0.125513]
[1731269141301,0.00267855,79680.0,79655.0,0.005]
[1731269141514,0.125505,79678.0,79667.0,0.125521]
[1731269141874,0.00267855,79680.0,79654.0,0.01]
[1731269141875,0.1879452,79674.0,79654.0,0.01]
[1731269142066,0.125527,79664.0,79653.0,0.01772843]
[1731269142328,0.12553,79662.0,79649.0,0.251098]
[1731269142539,0.12553,79662.0,79646.0,0.1879452]
[1731269142540,0.00270954,79663.0,79653.0,0.251089]
[1731269142761,0.00271316,79661.0,79651.0,0.00251069]
[1731269142919,0.00271131,79662.0,79655.0,0.251082]
[1731269143128,0.00271316,79661.0,79660.0,0.125533]
[1731269143332,0.00271316,79661.0,79656.0,0.125539]
[1731269143530,0.12594221,79667.0,79657.0,0.125538]
[1731269143955,0.25146421,79667.0,79657.0,0.120538]
[1731269144137,0.002702,79666.0,79650.0,0.002418]
[1731269144313,0.128226,79666.0,79650.0,0.002418]
[1731269144518,0.002702,79666.0,79651.0,0.251095]
[1731269144734,0.1879452,79662.0,79652.0,0.125546]
[1731269144942,0.12865333,79661.0,79650.0,0.002418]
[1731269145143,0.25418533,79661.0,79650.0,0.002418]
[1731269145366,0.12865333,79661.0,79650.0,0.002418]
[1731269145968,0.1879452,79660.0,79652.0,0.125544]
[1731269146195,0.00271468,79659.0,79650.0,0.002418]
[1731269146428,0.00271468,79659.0,79651.0,0.251095]
[1731269146709,0.00271468,79659.0,79653.0,0.125543]
[1731269147283,0.00271468,79659.0,79654.0,0.125541]
[1731269147487,0.00271468,79659.0,79652.0,0.251092]
[1731269147721,0.00271468,79659.0,79654.0,0.125541]
[1731269147923,0.1879452,79660.0,79654.0,0.125541]
[1731269148130,0.00271348,79658.0,79654.0,0.125541]
[1731269148293,0.00271348,79658.0,79657.0,0.125538]
[1731269148502,0.12594221,79661.0,79657.0,0.125538]
[1731269148715,0.00270977,79660.0,79657.0,0.125538]
[1731269148918,0.00270977,79660.0,79654.0,0.125542]
[1731269149116,0.00270977,79660.0,79652.0,0.251092]
[1731269149480,0.00270977,79660.0,79654.0,0.251085]
[1731269149630,0.00270977,79660.0,79659.0,0.125535]
[1731269149817,0.00270977,79660.0,79650.0,0.002418]
[1731269149818,0.1879452,79674.0,79652.0,0.256092]
[1731269150177,0.1879452,79674.0,79662.0,0.12553]
[1731269150178,0.1879452,79663.0,79662.0,0.12553]
[1731269150483,0.00417747,79663.0,79662.0,0.12553]
[1731269150848,0.1879452,79674.0,79666.0,0.251047]
[1731269151054,0.1879452,79673.0,79672.0,0.125514]
[1731269151256,0.19151368,79673.0,79672.0,0.125514]
[1731269151463,0.00356848,79673.0,79672.0,0.125514]
[1731269151665,0.12594221,79681.0,79663.0,0.005]
[1731269151867,0.1879452,79682.0,79681.0,0.1255]
[1731269152402,0.1915034,79682.0,79681.0,0.1255]
[1731269152603,0.0035582,79682.0,79681.0,0.1255]
[1731269152803,0.05074147,79683.0,79681.0,0.1255]
[1731269153045,0.17668368,79683.0,79681.0,0.1255]
[1731269153253,0.12905625,79682.0,79673.0,0.251024]
[1731269153460,0.00355825,79682.0,79673.0,0.251024]
[1731269153773,0.00355825,79682.0,79678.0,0.125504]
[1731269154772,0.00355825,79682.0,79675.0,0.251019]
[1731269155295,0.12594221,79683.0,79681.0,0.1255]
[1731269155468,0.12594221,79683.0,79682.0,0.125498]
[1731269155668,0.1,79688.0,79682.0,0.125498]
[1731269155880,0.0035583,79683.0,79682.0,0.125498]
[1731269156021,0.12721536,79687.0,79665.0,0.125525]
[1731269156239,0.12721536,79687.0,79682.0,0.125497]
[1731269156451,0.1879452,79684.0,79682.0,0.125497]
[1731269156696,0.25143821,79684.0,79677.0,0.125505]
[1731269156852,0.12594221,79684.0,79680.0,0.1255]
[1731269158664,0.12594221,79684.0,79678.0,0.251008]
[1731269158833,0.12594221,79684.0,79681.0,0.1255]
[1731269159402,0.00387257,79683.0,79681.0,0.1255]
[1731269159632,0.00387257,79683.0,79670.0,0.251035]
[1731269159633,0.00513312,79683.0,79670.0,0.251033]
[1731269159844,0.0265777,79683.0,79671.0,0.04618278]
[1731269160039,0.02144458,79683.0,79678.0,0.125504]
[1731269160290,0.00387377,79682.0,79679.0,0.14326534]
[1731269160441,0.00387377,79682.0,79681.0,0.1255]
[1731269160641,0.00387377,79682.0,79681.0,0.14326234]
[1731269160978,0.1879452,79690.0,79689.0,0.125487]
[1731269161131,0.1879452,79690.0,79689.0,0.14324934]
[1731269161332,0.05138331,79691.0,79689.0,0.01776234]
[1731269161537,0.001678,79698.0,79690.0,0.01776234]
[1731269161750,0.1879452,79694.0,79691.0,0.14324534]
[1731269161976,0.13240505,79693.0,79692.0,0.14324534]
[1731269162172,0.00646284,79693.0,79692.0,0.125483]
[1731269162373,0.001678,79698.0,79683.0,0.250993]
[1731269162557,0.13241491,79697.0,79684.0,0.01774567]
[1731269162772,0.13241491,79697.0,79685.0,0.01774567]
[1731269162968,0.13241491,79697.0,79694.0,0.125479]
[1731269163139,0.13241491,79697.0,79690.0,0.125486]
[1731269163140,0.1879452,79693.0,79690.0,0.125486]
[1731269163336,0.125484,79692.0,79691.0,0.01773985]
[1731269163566,0.125487,79690.0,79682.0,0.125497]
[1731269163736,0.12722165,79689.0,79683.0,0.01773949]
[1731269163936,0.5,79683.0,79659.0,0.1879452]
[1731269164158,0.251034,79671.0,79659.0,0.1879452]
[1731269164365,0.12552,79669.0,79659.0,0.125534]
[1731269164571,0.00121329,79668.0,79660.0,0.125532]
[1731269164773,0.12594221,79667.0,79654.0,0.005]
[1731269164976,0.00767663,79666.0,79656.0,0.125539]
[1731269165243,0.31388741,79665.0,79654.0,0.125542]
[1731269165407,0.31388741,79665.0,79648.0,0.251101]
[1731269165609,0.125528,79664.0,79653.0,0.125544]
[1731269165805,0.12594221,79663.0,79648.0,0.251101]
[1731269166005,0.25147121,79663.0,79648.0,0.251101]
[1731269166260,0.12594221,79663.0,79654.0,0.125542]
[1731269166664,0.12594221,79663.0,79648.0,0.251101]
[1731269166832,0.00646964,79666.0,79648.0,0.256101]
[1731269167049,0.5,79672.0,79653.0,0.01774416]
[1731269167050,0.00646031,79662.0,79653.0,0.01774416]
[1731269167257,0.1879452,79665.0,79654.0,0.01774416]
[1731269167452,0.00646034,79661.0,79655.0,0.01774416]
[1731269167662,0.31388741,79665.0,79659.0,0.125534]
[1731269167857,0.00646037,79660.0,79647.0,0.005]
[1731269168061,0.31388741,79665.0,79660.0,0.125532]
[1731269168261,0.31388741,79665.0,79656.0,0.125539]
[1731269168474,0.251057,79663.0,79647.0,0.005]
[1731269168716,0.37700221,79662.0,79653.0,0.01774168]
[1731269168862,0.125534,79660.0,79654.0,0.01774168]
[1731269169070,0.125534,79660.0,79655.0,0.01774168]
[1731269169273,0.13240297,79659.0,79654.0,0.00084]
[1731269169472,0.13199576,79659.0,79654.0,0.01858168]
[1731269169673,0.13240297,79659.0,79654.0,0.00084]
[1731269170493,0.00118177,79658.0,79654.0,0.00084]
[1731269171299,0.00118177,79658.0,79655.0,0.251082]
[1731269171497,0.00118177,79658.0,79657.0,0.125538]
[1731269171896,0.00118177,79658.0,79654.0,0.00084]
[1731269172106,0.12594221,79659.0,79654.0,0.126382]
[1731269172511,0.00645903,79658.0,79654.0,0.126382]
[1731269172747,0.00645903,79658.0,79657.0,0.125538]
[1731269173288,0.00645903,79658.0,79654.0,0.00084]
[1731269174121,0.0012385,79657.0,79656.0,0.125539]
[1731269174486,0.12594221,79659.0,79656.0,0.251079]
[1731269174684,0.12594221,79659.0,79654.0,0.00084]
[1731269174889,0.01044012,79658.0,79654.0,0.00084]
[1731269175142,0.01044012,79658.0,79655.0,0.01773665]
[1731269175285,0.01044012,79658.0,79656.0,0.01773665]
[1731269175483,0.01044012,79658.0,79657.0,0.01773665]
[1731269175695,0.01044012,79658.0,79655.0,0.01773697]
[1731269175915,0.01044012,79658.0,79654.0,0.00084]
[1731269176118,0.125541,79655.0,79654.0,0.00084]
[1731269176356,0.25148321,79655.0,79654.0,0.00084]
[1731269176857,0.12594221,79655.0,79654.0,0.00084]
[1731269177636,0.00092257,79655.0,79654.0,0.00084]
[1731269178076,0.25148321,79655.0,79654.0,0.00084]
[1731269178222,0.26189559,79655.0,79654.0,0.00084]
[1731269179868,0.8610563,79655.0,79654.0,0.00084]
[1731269180208,0.73511409,79655.0,79654.0,0.00084]
[1731269180422,0.74631976,79655.0,79654.0,0.00084]
[1731269181618,0.74631976,79655.0,79650.0,0.001578]
[1731269181619,0.388247,79651.0,79650.0,0.001578]
[1731269181988,0.388247,79651.0,79630.0,0.1879452]
[1731269181989,0.648579,79631.0,79630.0,0.1879452]
[1731269182190,0.12594221,79631.0,79630.0,0.1879452]
[1731269182334,0.12594221,79631.0,79622.0,0.125592]
[1731269182536,0.12594221,79630.0,79612.0,0.251217]
[1731269182736,0.5,79628.0,79611.0,0.001418]
[1731269182937,0.125591,79624.0,79611.0,0.127027]
[1731269183138,0.25153321,79623.0,79612.0,0.125609]
[1731269183303,0.25153321,79623.0,79611.0,0.001418]
[1731269183304,0.125597,79620.0,79611.0,0.001418]
[1731269183508,0.12594221,79619.0,79612.0,0.125608]
[1731269183705,0.25154021,79619.0,79611.0,0.001418]
[1731269184228,0.53451028,79619.0,79611.0,0.001418]
[1731269184432,0.51901075,79619.0,79611.0,0.001418]
[1731269184880,0.70968587,79619.0,79611.0,0.001418]
[1731269185885,0.71049491,79619.0,79611.0,0.001418]
[1731269186515,0.70049491,79619.0,79611.0,0.001418]
[1731269186729,1.00481979,79619.0,79611.0,0.001418]
[1731269186963,0.92741979,79619.0,79611.0,0.001418]
[1731269187588,0.30441979,79619.0,79611.0,0.001418]
[1731269187809,0.12675125,79619.0,79611.0,0.001418]
[1731269188013,0.12675125,79619.0,79618.0,0.127019]
[1731269188014,0.00080904,79619.0,79618.0,0.127019]
[1731269188128,0.00080904,79619.0,79618.0,0.00142]
[1731269188328,0.25234925,79619.0,79618.0,0.00142]
[1731269188523,0.25154021,79619.0,79618.0,0.00142]
[1731269188735,0.25234925,79619.0,79618.0,0.00142]
[1731269189647,0.47028934,79619.0,79618.0,0.00142]
[1731269189765,0.49328934,79619.0,79618.0,0.00142]
[1731269189965,0.27534925,79619.0,79618.0,0.00142]
[1731269190209,0.12675125,79619.0,79618.0,0.00142]
[1731269191178,0.00080904,79619.0,79618.0,0.127019]
[1731269191441,0.1879452,79625.0,79620.0,0.125595]
[1731269191680,0.1879452,79635.0,79618.0,0.00142]
[1731269191848,0.01017231,79624.0,79623.0,0.125591]
[1731269192057,0.1879452,79627.0,79624.0,0.125589]
[1731269192195,0.25151621,79634.0,79625.0,0.125588]
[1731269192398,0.31388741,79633.0,79618.0,0.00142]
[1731269192609,0.31388741,79633.0,79620.0,0.125596]
[1731269192819,0.251155,79632.0,79620.0,0.125595]
[1731269193025,0.251155,79632.0,79618.0,0.00142]
[1731269193026,0.12594221,79631.0,79618.0,0.00142]
[1731269193742,0.023,79630.0,79618.0,0.00142]
[1731269193970,0.023,79628.0,79618.0,0.00142]
[1731269194210,0.14894221,79628.0,79626.0,0.125587]
[1731269194360,0.14894221,79628.0,79619.0,0.251196]
[1731269194562,0.14894221,79628.0,79619.0,0.00251184]
[1731269194563,0.023,79628.0,79619.0,0.00251184]
[1731269194767,0.023,79628.0,79627.0,0.125585]
[1731269194945,0.023,79635.0,79618.0,0.00142]
[1731269195313,0.023,79630.0,79626.0,0.125586]
[1731269195563,0.023,79630.0,79621.0,0.25119]
[1731269195734,0.00084059,79629.0,79625.0,0.125587]
[1731269196283,0.2109452,79633.0,79625.0,0.125587]
[1731269196512,0.00083743,79628.0,79625.0,0.125587]
[1731269196706,0.33688741,79633.0,79625.0,0.125587]
[1731269196932,0.00083428,79627.0,79625.0,0.125587]
[1731269197130,0.33688741,79633.0,79625.0,0.125587]
[1731269197366,0.03319158,79626.0,79625.0,0.125587]
[1731269197572,0.023,79626.0,79625.0,0.125587]
[1731269197873,0.023,79632.0,79623.0,0.251183]
[1731269198090,0.2109452,79632.0,79625.0,0.125587]
[1731269198233,0.0102359,79631.0,79626.0,0.125586]
[1731269198433,0.023,79630.0,79626.0,0.125586]
[1731269198679,0.023,79630.0,79623.0,0.12559]
[1731269199014,0.00084059,79629.0,79623.0,0.12559]
[1731269199129,0.00084059,79629.0,79618.0,0.00142]
[1731269199330,0.00084059,79629.0,79620.0,0.125596]
[1731269199536,0.00084059,79629.0,79623.0,0.125591]
[1731269199778,0.00084059,79629.0,79620.0,0.251193]
[1731269199980,0.00084059,79629.0,79624.0,0.125589]
[1731269200574,0.00084059,79629.0,79621.0,0.25119]
[1731269200756,0.00084059,79629.0,79620.0,0.251193]
[1731269201118,0.00084059,79629.0,79618.0,0.00142]
[1731269201318,0.00084059,79629.0,79619.0,0.125598]
[1731269201465,0.00084059,79629.0,79620.0,0.251193]
[1731269201672,0.00084059,79629.0,79626.0,0.125586]
[1731269201888,0.00084059,79629.0,79621.0,0.25119]
[1731269202105,0.00084059,79629.0,79626.0,0.125586]
[1731269202340,0.00084059,79629.0,79628.0,0.125583]
[1731269202489,0.023,79628.0,79627.0,0.125585]
[1731269202897,0.023,79628.0,79625.0,0.125587]
[1731269202898,0.02433138,79628.0,79625.0,0.125587]
[1731269203138,0.02433138,79628.0,79627.0,0.125585]
[1731269203340,0.02433138,79628.0,79618.0,0.00142]
[1731269203341,0.125594,79622.0,79618.0,0.00142]